bitfinex/quotes_SOLUSD_20250903
["timestamp","ask_amount","ask_price","bid_price","bid_amount"]
[1756888764816,21.8,210.29,210.19,0.28432314]
[1756888764987,22.48,210.29,210.27,2.85492033]
[1756888765185,0.68,210.28,210.27,2.85492033]
[1756888765719,0.68,210.28,210.26,2.85492033]
[1756888766096,0.68,210.28,210.26,6.36093995]
[1756888766302,0.68,210.28,210.26,2.85492033]
[1756888766892,0.68,210.27,210.25,6.36093995]
[1756888767202,0.68,210.26,210.22,3.50601962]
[1756888767398,22.48,210.29,210.25,2.85492033]
[1756888767607,22.48,210.29,210.27,2.85492033]
[1756888768007,22.48,210.29,210.28,2.85492033]
[1756888768389,22.48,210.29,210.27,11.11769112]
[1756888768719,0.68,210.28,210.27,2.85492033]
[1756888769730,0.68,210.28,210.26,2.85492033]
[1756888770295,21.8,210.29,210.26,2.85492033]
[1756888770509,0.68,210.28,210.26,2.85492033]
[1756888770715,0.68,210.28,210.25,2.85492033]
[1756888770919,0.68,210.27,210.25,2.85492033]
[1756888771097,0.68,210.26,210.22,3.4815275]
[1756888771435,0.68,210.26,210.22,6.33644783]
[1756888772213,0.68,210.26,210.22,2.85492033]
[1756888773215,0.68,210.26,210.22,3.13924347]
[1756888774620,0.68,210.25,210.18,14.29558505]
[1756888774917,0.68,210.25,210.15,20.0]
[1756888774918,0.68,210.24,210.2,2.85492033]
[1756888775309,0.68,210.23,210.2,2.85492033]
[1756888776208,0.06,210.26,210.22,2.85492033]
[1756888776535,0.06,210.26,210.23,2.85492033]
[1756888776720,0.74,210.26,210.23,2.85492033]
[1756888776904,0.74,210.26,210.19,26.0]
[1756888777111,0.74,210.26,210.23,2.85492033]
[1756888777617,0.74,210.26,210.19,30.75757887]
[1756888777618,0.68,210.25,210.19,30.75757887]
[1756888777924,0.68,210.25,210.23,2.85492033]
[1756888778113,0.68,210.24,210.22,2.85492033]
[1756888778305,7.67096903,210.26,210.2,2.85492033]
[1756888778505,0.68,210.23,210.2,2.85492033]
[1756888781121,0.06,210.26,210.21,2.85492033]
[1756888781330,0.68,210.25,210.21,2.85492033]
[1756888783309,0.06,210.26,210.21,2.85492033]
[1756888783539,0.72,210.25,210.21,2.85492033]
[1756888783718,0.72,210.24,210.2,2.85492033]
[1756888784067,0.72,210.23,210.2,2.85492033]
[1756888785428,0.72,210.22,210.18,26.0]
[1756888785628,0.72,210.21,210.18,26.0]
[1756888786420,0.72,210.24,210.19,2.85492033]
[1756888786619,38.32,210.25,210.21,2.85492033]
[1756888786808,0.72,210.25,210.21,2.85492033]
[1756888787125,0.72,210.25,210.19,0.28432314]
[1756888788542,0.06,210.26,210.24,2.85492033]
[1756888789236,0.06,210.26,210.25,3.13924347]
[1756888789420,0.06,210.26,210.25,6.59988127]
[1756888789735,0.06,210.26,210.25,3.13924347]
[1756888789915,0.06,210.26,210.25,0.28432314]
[1756888790123,0.06,210.26,210.25,11.35612383]
[1756888790308,0.06,210.26,210.25,7.89548603]
[1756888792133,0.06,210.26,210.25,24.95171784]
[1756888795209,0.06,210.26,210.25,11.35612383]
[1756888795822,0.78,210.26,210.2,2.85492033]
[1756888796010,3.57492033,210.25,210.19,2.85492033]
[1756888796216,0.72,210.24,210.2,26.28432314]
[1756888796419,0.72,210.23,210.2,29.13924347]
[1756888796711,0.72,210.25,210.22,3.13924347]
[1756888796931,0.72,210.24,210.22,7.89605472]
[1756888797238,0.72,210.24,210.22,0.28432314]
[1756888797419,0.72,210.24,210.22,3.75284585]
[1756888797733,0.72,210.24,210.22,8.50969391]
[1756888798136,0.72,210.24,210.22,5.0411712]
[1756888798339,0.72,210.24,210.23,3.46852271]
[1756888799057,0.72,210.24,210.22,5.0411712]
[1756888799630,0.72,210.24,210.21,26.28432314]
[1756888799833,0.72,210.24,210.21,0.28432314]
[1756888800033,0.72,210.23,210.21,0.28432314]
[1756888800234,2.85492033,210.22,210.17,4.8153724]
[1756888800421,3.57492033,210.21,210.15,4.75850582]
[1756888800623,0.72,210.21,210.19,0.28432314]
[1756888800839,0.72,210.2,210.19,0.28432314]
[1756888801021,2.85492033,210.24,210.19,0.28432314]
[1756888801221,0.72,210.22,210.19,0.28432314]
[1756888801422,0.72,210.21,210.19,0.28432314]
[1756888802040,0.72,210.2,210.19,0.28432314]
[1756888802740,0.72,210.2,210.18,5.042149]
[1756888802937,0.72,210.2,210.18,0.28432314]
[1756888803144,0.72,210.19,210.18,0.28432314]
[1756888803324,0.72,210.19,210.18,26.0]
[1756888803525,0.72,210.19,210.17,0.28432314]
[1756888803733,0.72,210.19,210.16,26.0]
[1756888804028,4.4514316,210.17,210.12,4.7591589]
[1756888804239,0.72,210.16,210.13,0.28432314]
[1756888804538,0.72,210.15,210.12,9.2105905]
[1756888804949,4.4514316,210.18,210.13,4.4514316]
[1756888805132,0.72,210.15,210.14,0.14216157]
[1756888805328,0.08707793,210.15,210.14,0.28432314]
[1756888805534,4.4514316,210.2,210.14,4.73575474]
[1756888805731,4.4514316,210.21,210.16,0.28432314]
[1756888805931,4.4514316,210.2,210.14,26.0]
[1756888806143,4.4514316,210.19,210.15,0.28432314]
[1756888806350,4.4514316,210.18,210.14,0.28432314]
[1756888807362,0.72,210.17,210.14,5.04303677]
[1756888807528,0.72,210.16,210.14,5.04303677]
[1756888808138,0.72,210.15,210.14,5.04303677]
[1756888808354,0.72,210.15,210.11,4.75939265]
[1756888808547,4.4514316,210.13,210.07,4.4514316]
[1756888808751,4.4514316,210.1,210.05,122.86547951]
[1756888808920,0.72,210.09,210.06,0.28432314]
[1756888809126,0.72,210.08,210.06,0.28432314]
[1756888809326,4.75906997,210.13,210.06,0.28432314]
[1756888809327,0.72,210.07,210.06,0.28432314]
[1756888809828,0.72,210.07,210.05,132.07746949]
[1756888809829,0.72,210.07,210.05,122.86547951]
[1756888810023,0.72,210.13,210.06,4.59359317]
[1756888810242,0.72,210.13,210.06,0.77216157]
[1756888810438,0.72,210.13,210.09,4.4514316]
[1756888810631,0.72,210.12,210.09,4.4514316]
[1756888811046,4.4514316,210.14,210.11,0.03]
[1756888811237,4.4514316,210.12,210.11,0.03]
[1756888811760,5.1314316,210.12,210.11,0.03]
[1756888812262,5.1314316,210.15,210.11,0.03]
[1756888812753,0.68,210.14,210.11,0.03]
[1756888813052,4.4514316,210.12,210.11,0.03]
[1756888813433,5.1314316,210.12,210.11,0.03]
[1756888814236,9.89061682,210.12,210.11,0.03]
[1756888815851,14.34204842,210.12,210.09,0.03]
[1756888816047,44.04702561,210.1,210.09,0.03]
[1756888816456,82.68702561,210.1,210.09,0.03]
[1756888817629,87.44666387,210.1,210.09,0.03]
[1756888819448,26.0,210.07,209.97,0.1]
[1756888819646,4.4514316,209.99,209.97,0.1]
[1756888819943,4.4514316,210.02,209.97,5.52254506]
[1756888820336,4.4514316,210.02,209.98,0.66]
[1756888820633,4.4514316,210.01,209.97,4.86254506]
[1756888820860,4.4514316,210.01,209.97,5.52254506]
[1756888821044,0.68,210.05,209.98,0.66]
[1756888821245,37.9,210.05,209.98,0.94432314]
[1756888821447,4.4514316,210.02,209.99,0.66]
[1756888821639,4.4514316,210.02,210.0,0.66]
[1756888821953,37.9,210.05,209.98,0.28432314]
[1756888821954,4.4514316,210.04,210.01,0.66]
[1756888823070,4.4514316,210.04,210.02,4.76145129]
[1756888823364,4.4514316,210.03,210.02,4.76145129]
[1756888824452,4.4514316,210.03,210.0,0.28432314]
[1756888824757,4.4514316,210.03,210.0,0.94432314]
[1756888826256,4.4514316,210.03,210.01,4.76167801]
[1756888826639,4.4514316,210.04,210.01,4.76167801]
[1756888827042,4.4514316,210.03,210.01,4.76167801]
[1756888827347,4.4514316,210.05,210.02,0.66]
[1756888827959,4.4514316,210.04,210.01,4.76167801]
[1756888828155,4.4514316,210.02,209.98,4.76235831]
[1756888828462,4.4514316,209.99,209.98,5.04668145]
[1756888829465,0.68,209.99,209.97,4.86257919]
[1756888829652,4.4514316,209.98,209.97,4.86257919]
[1756888830058,5.1314316,209.98,209.97,4.86257919]
[1756888830373,4.4514316,209.98,209.97,4.86257919]
[1756888831448,4.4514316,209.98,209.97,0.1]
[1756888833364,4.4514316,209.98,209.97,4.86258513]
[1756888833966,4.4514316,209.99,209.97,4.86258513]
[1756888834166,5.1314316,209.98,209.97,0.1]
[1756888834665,5.1314316,209.98,209.95,0.03]
[1756888834870,4.4514316,209.96,209.95,0.03]
[1756888835075,37.74,209.96,209.95,0.03]
[1756888835370,42.8714316,209.96,209.95,0.03]
[1756888835751,5.1314316,209.96,209.95,0.03]
[1756888835951,42.8714316,209.96,209.95,0.03]
[1756888837065,42.8714316,209.96,209.89,4.7944004]
[1756888837281,4.4514316,209.92,209.89,30.7944004]
[1756888837585,4.4514316,209.91,209.89,4.7944004]
[1756888839383,42.1714316,209.92,209.89,4.7944004]
[1756888839583,37.7,209.92,209.9,0.71]
[1756888839787,37.7,209.93,209.9,0.28432314]
[1756888839958,4.4514316,209.95,209.9,0.99432314]
[1756888840277,37.7,209.94,209.9,0.99432314]
[1756888840686,37.68,209.94,209.91,4.76394645]
[1756888841265,37.68,209.94,209.91,9.21537805]
[1756888841564,37.68,209.94,209.91,4.76394645]
[1756888841955,5.1314316,209.93,209.89,4.79418065]
[1756888842182,5.1314316,209.92,209.89,4.79418065]
[1756888842354,0.68,209.91,209.89,4.79418065]
[1756888842756,0.68,209.93,209.89,4.79418065]
[1756888842972,5.1314316,209.93,209.89,4.79418065]
[1756888843159,0.68,209.93,209.89,4.79418065]
[1756888843367,37.68,209.92,209.89,9.94561225]
[1756888843654,37.68,209.92,209.89,9.24561225]
[1756888843980,38.36,209.92,209.89,4.79418065]
[1756888844385,37.68,209.92,209.89,4.79418065]
[1756888846493,38.36,209.92,209.89,4.79418065]
[1756888848261,0.68,209.91,209.89,4.79418065]
[1756888848970,4.4514316,209.94,209.89,4.79418065]
[1756888849284,38.3,209.93,209.89,4.79418065]
[1756888849483,37.6,209.92,209.89,4.79418065]
[1756888849787,38.28,209.92,209.89,4.79418065]
[1756888850481,0.68,209.92,209.89,4.79418065]
[1756888850659,37.58,209.92,209.89,4.79418065]
[1756888851060,0.68,209.91,209.89,9.24561225]
[1756888851470,0.68,209.91,209.89,4.79418065]
[1756888853887,0.68,209.91,209.89,9.24561225]
[1756888854099,0.68,209.97,209.9,0.7]
[1756888854262,37.56,209.96,209.91,4.4514316]
[1756888854463,0.68,209.97,209.93,4.4514316]
[1756888854464,37.56,209.95,209.93,4.4514316]
[1756888854667,4.4514316,209.99,209.93,4.4514316]
[1756888854858,38.26,209.98,209.93,4.4514316]
[1756888855061,0.68,209.97,209.93,4.4514316]
[1756888855967,0.68,209.96,209.93,4.4514316]
[1756888856475,0.68,209.96,209.94,4.76326569]
[1756888856681,38.24,209.96,209.94,4.76326569]
[1756888857058,37.56,209.96,209.94,4.76326569]
[1756888857278,0.68,209.98,209.94,4.76326569]
[1756888857477,37.56,209.97,209.94,9.21469729]
[1756888858792,37.56,209.97,209.94,4.76326569]
[1756888858992,0.68,209.96,209.93,4.76347088]
[1756888859288,0.68,209.95,209.93,4.76347088]
[1756888859782,0.68,209.94,209.93,4.76347088]
[1756888860378,4.4514316,209.94,209.91,4.76374138]
[1756888860683,4.4514316,209.98,209.92,5.43575474]
[1756888860858,37.5,209.95,209.93,4.76349259]
[1756888861484,38.2,209.97,209.93,4.76349259]
[1756888861673,0.68,209.96,209.93,4.76349259]
[1756888862183,0.68,209.96,209.92,5.04804265]
[1756888862585,0.68,209.95,209.92,5.04804265]
[1756888862788,0.68,209.94,209.92,4.76371951]
[1756888863288,4.4514316,209.96,209.92,4.76371951]
[1756888863489,0.68,209.95,209.92,4.76371951]
[1756888864994,38.16,209.95,209.92,4.76371951]
[1756888865169,37.48,209.95,209.92,4.76371951]
[1756888865374,37.48,209.95,209.92,5.46371951]
[1756888865573,37.46,209.95,209.92,5.46371951]
[1756888866076,37.46,209.95,209.92,4.76371951]
[1756888866270,0.68,209.94,209.92,4.76371951]
[1756888866482,0.68,209.94,209.91,0.28432314]
[1756888866785,3.53503405,209.93,209.9,4.76417341]
[1756888866985,0.68,209.92,209.9,4.76417341]
[1756888867563,0.68,209.91,209.9,4.76417341]
[1756888867766,0.68,209.91,209.9,4.79417341]
[1756888868882,0.68,209.91,209.9,0.03]
[1756888869389,40.97503405,209.91,209.9,0.03]
[1756888870870,45.7389805,209.91,209.9,0.03]
[1756888871066,40.97503405,209.91,209.9,0.03]
[1756888871784,45.7389805,209.91,209.9,0.03]
[1756888871988,40.97503405,209.91,209.9,0.03]
[1756888872492,45.7389805,209.91,209.9,0.03]
[1756888877085,40.95503405,209.91,209.9,0.03]
[1756888877279,66.95503405,209.91,209.9,0.03]
[1756888877683,82.45954046,209.91,209.9,0.03]
[1756888877994,85.33457451,209.91,209.9,0.03]
[1756888878188,87.24456616,209.91,209.9,0.03]
[1756888878692,49.80456616,209.91,209.9,0.03]
[1756888878892,87.24456616,209.91,209.9,0.03]
[1756888880090,1.90999165,209.91,209.9,0.03]
[1756888880281,0.06,209.94,209.9,0.71]
[1756888880486,11.28,209.93,209.91,3.53503405]
[1756888880694,11.28,209.93,209.92,0.68]
[1756888881091,37.48,209.94,209.92,3.53503405]
[1756888881385,0.06,209.94,209.93,3.53503405]
[1756888881579,0.06,209.94,209.93,0.68]
[1756888882092,0.06,209.94,209.93,5.44349259]
[1756888883379,0.06,209.94,209.93,8.58284978]
[1756888883894,0.06,209.94,209.93,14.02634237]
[1756888885180,0.06,209.94,209.93,4.76349259]
[1756888885376,0.06,209.94,209.93,31.44349259]
[1756888885884,0.06,209.94,209.93,30.76349259]
[1756888886504,2.91503405,209.94,209.91,19.0798393]
[1756888887112,2.91503405,209.94,209.91,4.76378862]
[1756888887482,2.91503405,209.94,209.91,5.44378862]
[1756888887483,37.42,209.94,209.91,5.44378862]
[1756888888381,40.27503405,209.94,209.91,4.76378862]
[1756888888703,2.85503405,209.92,209.9,0.03]
[1756888889004,2.85503405,209.91,209.9,0.03]
[1756888889175,0.72,209.91,209.9,0.03]
[1756888889376,3.57503405,209.91,209.9,0.03]
[1756888894303,2.85503405,209.91,209.9,0.03]
[1756888894591,40.17503405,209.91,209.9,0.03]
[1756888895182,2.85503405,209.91,209.9,0.03]
[1756888895598,40.15503405,209.91,209.9,0.03]
[1756888896096,40.87503405,209.91,209.9,0.03]
[1756888897500,40.15503405,209.91,209.9,0.03]
[1756888899409,38.02,209.91,209.9,0.03]
[1756888899712,40.87503405,209.91,209.9,0.03]
[1756888901414,40.15503405,209.91,209.9,0.03]
[1756888902291,40.83503405,209.91,209.9,0.03]
[1756888904126,0.06,209.94,209.9,0.03]
[1756888904127,2.85503405,209.92,209.9,0.03]
[1756888904290,37.24,209.91,209.9,0.03]
[1756888904691,0.06,209.94,209.9,0.71]
[1756888904896,37.24,209.93,209.91,0.68]
[1756888905297,37.3,209.94,209.91,0.68]
[1756888906193,37.3,209.94,209.9,3.16935719]
[1756888906387,37.3,209.94,209.91,0.68]
[1756888906893,37.3,209.94,209.92,4.76371951]
[1756888908700,37.3,209.94,209.91,4.76394645]
[1756888909009,37.3,209.94,209.91,5.44394645]
[1756888909205,37.3,209.94,209.91,4.76394645]
[1756888909412,0.68,209.93,209.91,4.76394645]
[1756888909929,0.68,209.92,209.9,4.79416491]
[1756888911099,0.68,209.92,209.9,0.03]
[1756888911309,2.85503405,209.93,209.9,0.03]
[1756888911931,3.53503405,209.93,209.9,0.03]
[1756888912094,0.68,209.93,209.9,0.03]
[1756888912736,0.68,209.92,209.9,0.03]
[1756888913233,37.24,209.91,209.9,0.03]
[1756888915200,40.77503405,209.91,209.9,0.03]
[1756888916119,59.13457451,209.91,209.9,0.03]
[1756888920640,29.53503405,209.91,209.9,0.03]
[1756888920832,66.77503405,209.91,209.9,0.03]
[1756888921023,40.77503405,209.91,209.9,0.03]
[1756888922851,45.5389805,209.91,209.9,0.03]
[1756888923051,59.13457451,209.91,209.9,0.03]
[1756888924532,40.77503405,209.91,209.9,0.03]
[1756888925452,42.38514733,209.91,209.9,0.03]
[1756888926040,47.14909378,209.91,209.9,0.03]
[1756888926765,13.59559401,209.9,209.89,0.03]
[1756888926932,22.52588867,209.9,209.88,0.03]
[1756888927135,65.23028907,209.89,209.88,0.03]
[1756888927742,60.76514174,209.89,209.88,0.03]
[1756888927947,23.50514174,209.89,209.88,0.03]
[1756888928147,60.76514174,209.89,209.88,0.03]
[1756888932554,23.50514174,209.89,209.88,0.03]
[1756888932730,60.76514174,209.89,209.88,0.03]
[1756888932932,23.50514174,209.89,209.88,0.03]
[1756888933133,60.76514174,209.89,209.88,0.03]
[1756888934554,14.27559401,209.89,209.88,0.03]
[1756888934759,0.68,209.95,209.88,0.69]
[1756888934958,37.26,209.93,209.88,0.69]
[1756888935138,41.72514733,209.93,209.88,0.69]
[1756888935334,37.26,209.93,209.89,0.66]
[1756888935538,4.46514733,209.91,209.89,0.66]
[1756888935737,37.26,209.9,209.89,0.66]
[1756888937737,37.26,209.9,209.89,5.42432326]
[1756888939136,4.46514733,209.93,209.89,5.42432326]
[1756888939335,37.26,209.92,209.9,0.66]
[1756888940159,4.46514733,209.91,209.89,0.03]
[1756888940351,41.70514733,209.9,209.89,0.03]
[1756888941057,37.24,209.9,209.89,0.03]
[1756888941259,37.24,209.9,209.89,0.69]
[1756888942356,0.06,209.91,209.89,0.69]
[1756888942541,37.24,209.9,209.89,0.69]
[1756888942744,0.06,209.91,209.89,0.03]
[1756888943071,42.38514733,209.9,209.89,0.03]
[1756888943254,41.70514733,209.9,209.89,0.03]
[1756888943441,42.38514733,209.9,209.89,0.03]
[1756888949856,41.70514733,209.9,209.89,0.03]
[1756888950161,42.38514733,209.9,209.89,0.03]
[1756888950847,5.14514733,209.9,209.89,0.03]
[1756888951056,42.38514733,209.9,209.89,0.03]
[1756888953463,0.06,209.91,209.89,0.03]
[1756888953664,37.24,209.9,209.89,0.03]
[1756888954246,0.06,209.91,209.89,0.03]
[1756888954560,37.24,209.9,209.89,0.03]
[1756888955270,37.24,209.9,209.89,0.69]
[1756888955752,0.06,209.91,209.89,0.69]
[1756888955954,37.24,209.9,209.89,0.69]
[1756888957172,0.06,209.91,209.89,5.45436357]
[1756888957346,37.24,209.9,209.89,5.45436357]
[1756888958266,0.06,209.91,209.89,5.45436357]
[1756888958474,37.24,209.9,209.89,5.45436357]
[1756888959249,37.24,209.9,209.89,0.03]
[1756888961468,37.24,209.9,209.89,0.69]
[1756888962051,37.24,209.9,209.89,0.03]
[1756888967274,37.89,209.9,209.89,0.03]
[1756888967780,37.24,209.9,209.89,0.03]
[1756888968481,42.35514733,209.9,209.89,0.03]
[1756888973079,0.06,209.91,209.89,0.03]
[1756888973382,37.22,209.9,209.89,0.03]
[1756888975085,37.28,209.9,209.89,0.03]
[1756888979065,37.28,209.9,209.89,0.73]
[1756888980169,37.28,209.9,209.89,5.4944004]
[1756888980569,0.06,209.9,209.89,9.95954773]
[1756888980770,0.06,209.91,209.89,10.24387087]
[1756888980964,0.06,209.91,209.9,5.44947047]
[1756888981286,0.06,209.93,209.9,5.44947047]
[1756888981287,1e-08,209.93,209.9,49.07589013]
[1756888981485,1e-08,209.93,209.92,44.34506448]
[1756888981673,1e-08,209.93,209.92,21.89947279]
[1756888981877,1e-08,209.93,209.92,22.59947279]
[1756888982078,1e-08,209.93,209.92,29.27154372]
[1756888982273,0.06,209.96,209.94,26.0]
[1756888982592,0.06,209.96,209.94,34.30387878]
[1756888982775,0.06,209.96,209.94,35.00387878]
[1756888983186,0.06,209.96,209.94,39.76714447]
[1756888985892,0.06,209.96,209.94,41.67549589]
[1756888986300,0.06,209.96,209.94,41.66391779]
[1756888987599,0.06,209.96,209.94,40.05240348]
[1756888989690,0.06,209.96,209.94,36.50957327]
[1756888989899,0.06,209.96,209.94,40.04804297]
[1756888993687,0.06,209.96,209.94,40.07804297]
[1756888994225,0.06,209.96,209.94,77.27804297]
[1756888994410,0.06,209.96,209.94,74.42440995]
[1756888994698,0.06,209.96,209.94,77.27804297]
[1756888995502,0.06,209.96,209.94,40.07804297]
[1756888995680,0.06,209.96,209.94,77.25804297]
[1756888996595,1e-08,209.95,209.94,77.25804297]
[1756888996788,1e-08,209.96,209.95,13.87991715]
[1756888997104,1e-08,209.96,209.95,20.93201987]
[1756888997696,1e-08,209.96,209.95,22.84018922]
[1756888998911,1e-08,209.96,209.95,51.18763402]
[1756888999409,1e-08,209.96,209.95,47.674001]
[1756888999594,1e-08,209.96,209.95,50.52763402]
[1756889000409,1e-08,209.96,209.95,51.18430294]
[1756889000789,1e-08,209.96,209.95,13.34430294]
[1756889000988,1e-08,209.96,209.95,50.52430294]
[1756889001607,1e-08,209.96,209.95,51.18430294]
[1756889001904,1e-08,209.97,209.95,64.77989695]
[1756889002129,1e-08,210.0,209.99,13.87991715]
[1756889002291,0.74,210.11,210.03,39.59559401]
[1756889002487,0.06,210.11,210.08,3.13795616]
[1756889002688,0.06,210.11,210.08,32.664578]
[1756889002689,0.68,210.1,210.08,32.664578]
[1756889002881,0.74,210.09,210.08,32.664578]
[1756889003286,0.74,210.09,210.08,29.13795616]
[1756889003482,0.74,210.09,210.08,35.805398]
[1756889003680,0.06,210.09,210.08,35.805398]
[1756889006912,0.74,210.09,210.08,35.805398]
[1756889007588,0.06,210.09,210.08,35.805398]
[1756889008616,0.06,210.09,210.08,33.89804755]
[1756889010005,0.74,210.09,210.08,31.04441453]
[1756889010207,0.06,210.09,210.08,33.89804755]
[1756889012604,0.06,210.11,210.1,0.28432314]
[1756889012907,1e-08,210.11,210.1,58.0631226]
[1756889013489,1e-08,210.11,210.1,59.96992751]
[1756889013899,1e-08,210.12,210.1,63.75068335]
[1756889014114,1e-08,210.12,210.11,7.3057319]
[1756889014607,1e-08,210.12,210.11,13.97194854]
[1756889017429,1e-08,210.12,210.11,13.31194854]
[1756889017725,1e-08,210.12,210.11,13.31049405]
[1756889022729,0.70000001,210.12,210.11,8.26573298]
[1756889022898,0.70000001,210.12,210.11,5.04373487]
[1756889024607,1e-08,210.12,210.11,7.89736789]
[1756889025203,1e-08,210.12,210.11,9.80435461]
[1756889025414,0.70000001,210.12,210.11,9.80435461]
[1756889026017,1e-08,210.12,210.11,9.80435461]
[1756889029029,0.70000001,210.12,210.11,9.80435461]
[1756889029902,0.70000001,210.12,210.11,33.89736789]
[1756889030226,0.70000001,210.12,210.11,37.410689]
[1756889031709,0.70000001,210.12,210.11,34.55705598]
[1756889038016,0.70000001,210.12,210.11,34.27273284]
[1756889043242,3.55363303,210.12,210.11,3.51332111]
[1756889043740,3.55363303,210.12,210.1,4.78961462]
[1756889043944,3.55363302,210.11,210.1,4.78961462]
[1756889044140,3.55363302,210.11,210.1,8.32550156]
[1756889045650,0.7,210.11,210.1,8.32550156]
[1756889046772,1e-08,210.12,210.1,8.32550156]
[1756889046949,1e-08,210.12,210.11,8.29529867]
[1756889047325,1e-08,210.12,210.11,11.43325483]
[1756889047641,1e-08,210.12,210.11,13.7420295]
[1756889049645,1e-08,210.12,210.11,15.64892531]
[1756889050766,0.70000001,210.12,210.11,36.48651762]
[1756889051231,0.70000001,210.12,210.11,34.59016496]
[1756889052357,0.2,210.17,210.15,0.28432314]
[1756889052566,4.45240769,210.23,210.2,0.14216157]
[1756889052858,4.45240769,210.25,210.21,3.54643009]
[1756889053156,0.66,210.23,210.22,3.54643009]
[1756889053360,0.66,210.23,210.22,8.30335141]
[1756889053877,0.66,210.26,210.24,26.0]
[1756889054167,4.45240769,210.27,210.24,26.0]
[1756889054330,4.45240769,210.28,210.25,3.53858962]
[1756889054531,4.45240769,210.28,210.24,26.0]
[1756889054740,0.66,210.27,210.25,3.53858256]
[1756889054938,0.66,210.26,210.25,4.75624256]
[1756889056734,0.66,210.26,210.25,8.29272537]
[1756889056970,4.45240769,210.29,210.25,8.29272537]
[1756889057146,0.66,210.28,210.26,3.53648281]
[1756889057347,0.66,210.27,210.25,4.75624256]
[1756889057541,4.45240769,210.29,210.26,3.53392217]
[1756889057858,4.45240769,210.29,210.25,4.75624256]
[1756889058157,0.66,210.28,210.25,8.28922025]
[1756889058550,0.66,210.27,210.25,8.28922025]
[1756889058751,0.66,210.26,210.25,8.28922025]
[1756889060138,0.66,210.26,210.24,26.0]
[1756889060356,0.66,210.25,210.24,26.0]
[1756889060661,37.52,210.31,210.24,29.53030028]
[1756889060961,0.66,210.26,210.24,26.0]
[1756889061539,0.66,210.26,210.24,30.75636346]
[1756889063464,0.66,210.25,210.24,30.75636346]
[1756889063663,5.11240769,210.25,210.23,14.29558504]
[1756889063846,5.11240769,210.24,210.23,26.0]
[1756889064339,4.45240769,210.24,210.23,26.0]
[1756889064544,4.45240769,210.26,210.24,26.0]
[1756889064745,4.45240769,210.27,210.24,26.0]
[1756889065267,5.11240769,210.27,210.24,26.0]
[1756889066067,5.11240769,210.27,210.25,4.75624256]
[1756889066856,0.66,210.26,210.25,4.75624256]
[1756889067665,4.45240769,210.27,210.25,4.75624256]
[1756889067857,5.11240769,210.27,210.25,4.75624256]
[1756889069365,0.66,210.26,210.24,26.0]
[1756889069547,0.66,210.26,210.24,30.7564663]
[1756889069967,5.11240769,210.26,210.24,30.7564663]
[1756889073166,4.45240769,210.26,210.24,30.7564663]
[1756889073364,4.45240769,210.27,210.24,30.7564663]
[1756889073562,5.11240769,210.27,210.24,30.7564663]
[1756889076480,4.45240769,210.27,210.24,30.7564663]
[1756889076962,5.11240769,210.27,210.24,30.7564663]
[1756889078371,4.45240769,210.27,210.24,30.7564663]
[1756889078873,5.11240769,210.27,210.24,30.7564663]
[1756889080080,0.66,210.27,210.24,30.7564663]
[1756889080265,0.06,210.28,210.24,30.7564663]
[1756889080466,4.45240769,210.27,210.24,31.4764663]
[1756889081064,4.51240769,210.28,210.25,0.72]
[1756889081266,4.51240769,210.28,210.24,30.7564663]
[1756889081457,4.45240769,210.27,210.24,30.7564663]
[1756889081657,5.16240769,210.27,210.24,30.7564663]
[1756889082781,5.22240769,210.27,210.24,30.7564663]